Cogmind - Beta 16 @@@ ROGUE MODE // 2026.02.06 @ 12:14:20 Player: Moddy Result: Destroyed by YY-Y31(R) with Subdweller Laser Performance ------------- Evolutions (0) 0 Regions Visited (2) 400 Robots Destroyed (10) 50 Value Destroyed (181) 181 Prototype IDs (2) 40 Alien Tech Used (0) 0 Bonus (0) 0 TOTAL SCORE: 671 Bonus ------- None Cogmind --------- Core Integrity 0/250 Matter 300/300 Energy 100/100 System Corruption 1% Temperature Cool (6) Movement Core (100) Ox1 Location -10/Subcaves Parts ------- > --- POWER (1) -------- (None) > --- PROPULSION (2) --- (None) > --- UTILITY (2) ------ Small Storage Unit > --- WEAPON (2) ------- (None) > --- INVENTORY (8) ---- Ion Engine Light Ion Engine Aluminum Leg Aluminum Leg Compact Wheel Hover Unit Visual Processing Unit EM Pulse Gun Peak State ------------ > --- POWER ------------ Subdweller Power Source > --- PROPULSION ------- Light Treads Spiked Treads > --- UTILITY ---------- Small Storage Unit ECM Suite > --- WEAPON ----------- Light Cannon Light Cannon > --- INVENTORY -------- Ion Engine Light Ion Engine Aluminum Leg Aluminum Leg Compact Wheel Hover Unit Visual Processing Unit EM Pulse Gun [Rating: 9] Favorites ----------- Power Light Ion Engine Engine Light Ion Engine Propulsion Aluminum Leg Treads Light Treads Leg Aluminum Leg Utility Small Storage Unit Device ECM Suite Storage Small Storage Unit Weapon Light Cannon Ballistic Gun Light Assault Rifle Ballistic Cannon Light Cannon Build | -11 -10 -10 ------- Run | Yrd Mat Sub Slots Evolved . | . . . Power . | . . . Propulsion . | . . . Utility . | . . . Weapon . | . . . Parts Attached 17 | . 15 2 Power 3 | . 2 1 Engine 3 | . 2 1 Core . | . . . Reactor . | . . . Propulsion 6 | . 5 1 Treads 3 | . 2 1 Leg 3 | . 3 . Wheel . | . . . Hover . | . . . Flight . | . . . Utility 3 | . 3 . Device 1 | . 1 . Storage 2 | . 2 . Processor . | . . . Hackware . | . . . Protection . | . . . Artifact . | . . . Weapon 5 | . 5 . Energy Gun . | . . . Energy Cannon . | . . . Ballistic Gun 2 | . 2 . Ballistic Cannon 3 | . 3 . Launcher . | . . . Special Weapon . | . . . Impact Weapon . | . . . Slashing Weapon . | . . . Piercing Weapon . | . . . Special Melee Weapon . | . . . Unidentified Prototypes . | . . . Parts Lost 7 | . . 7 Power 2 | . . 2 Propulsion 2 | . . 2 Utility 1 | . . 1 Weapon 2 | . . 2 Highest Loss Streak 6 | . . 6 To Critical Strikes . | . . . Average Backups 7 | . 7 7 Power 1 | . 1 2 Propulsion 3 | . 4 3 Utility . | . . 1 Weapon 1 | . 1 1 Tool/Special . | . . . Unused Backups 3 | . 1 2 Power 1 | . 1 . Propulsion 1 | . . 1 Utility 1 | . . 1 Weapon . | . . . Tool/Special . | . . . Average Slot Usage (%) 95 | . 97 92 Engine 13 | . 14 12 Treads 4 | . . 8 Leg 22 | . 27 18 Device 12 | . 12 12 Storage 14 | . 14 14 Ballistic Gun 3 | . 7 . Ballistic Cannon 22 | . 20 24 Peak Build Rating 9 | . 7 9 Average Rating 6 | . 6 7 On Entrance 6 | 6 6 7 Avg Prop Armor Cover (%) . | . . . Naked Turns . | . . . Heaviest Build 18 | 12 18 18 Greatest Support 40 | 20 20 40 Greatest Overweight (x) 1 | . 1 . Average Overweight (x) . | . . . Largest Inventory Capacity 25 | . 25 8 Average Capacity 8 | . 8 8 Most Carried 8 | . 8 8 Average Carried 7 | . 7 7 Final Capacity 8 | 8 8 8 Final Carried 8 | 6 7 8 Class Distribution -------------------- 100% | Mutant Dominant Class ---------------- Mutant | -10/Materials Mutant | -10/Subcaves Resources | -11 -10 -10 ----------- Run | Yrd Mat Sub Matter Collected 593 | 189 323 81 Remotely . | . . . Salvage Created 186 | . 178 8 Parts 19 | . 17 2 Haulers Intercepted . | . . . Recyclers Shooed 1 | . 1 . Parts Field Recycled . | . . . Retrieved Matter . | . . . Parts Self-Destructed . | . . . Prevented . | . . . Parts Restored . | . . . Kills | -11 -10 -10 ------- Run | Yrd Mat Sub Combat Hostiles Destroyed 6 | . 5 1 Cannons 6 | . 5 1 Classes Destroyed 6 | . 5 1 Builder 1 | . 1 . Recycler 1 | . 1 . Watcher 2 | . 2 . Swarmer 3 | . 3 . Grunt 2 | . 2 . Subdweller 1 | . . 1 Best Kill Streak 4 | . 4 1 Combat Bots Only 3 | . 3 1 Max Kills in Single Turn 2 | . 2 1 Gunslinging . | . . . Exploded . | . . . Melee . | . . . Uniques/NPCs Destroyed . | . . . Combat | -11 -10 -10 -------- Run | Yrd Mat Sub Hostile Shots Fired 111 | . 45 66 Missed 32 | . 10 22 Hits 79 | . 35 44 Projectile 79 | . 35 44 Critical Strikes 2 | . . 2 Damage Taken 1256 | . 344 912 Core 260 | . 56 204 Absorbed by Shields . | . . . Core Remaining (%) 100 | 100 . . Volleys Fired 35 | . 19 16 Largest 2 | . 2 2 Hottest 60 | . 60 60 Shots Fired 63 | . 37 26 Gun 2 | . 2 . Cannon 61 | . 35 26 Launcher . | . . . Special . | . . . Kinetic 63 | . 37 26 Thermal . | . . . Explosive . | . . . Electromagnetic . | . . . Robot Hit Streak 6 | . 5 6 Robot Miss Streak 4 | . 4 2 Penetration Max . | . . . Secondary Targets . | . . . Shots Hit Robots 34 | . 17 17 Core Hits 15 | . 10 5 Critical Kills . | . . . Critical Parts Destroyed . | . . . Critical Strikes 3 | . 2 1 Blast 3 | . 2 1 Melee Attacks . | . . . Impact . | . . . Slashing . | . . . Piercing . | . . . Sneak Attacks . | . . . Combat Hostiles . | . . . Follow-up Attacks . | . . . Damage Inflicted 538 | . 324 214 Guns 14 | . 14 . Cannons 493 | . 310 183 Explosions . | . . . Melee . | . . . Ramming 31 | . . 31 Kinetic 507 | . 324 183 Thermal . | . . . Explosive . | . . . Electromagnetic . | . . . Impact . | . . . Slashing . | . . . Piercing . | . . . Highest Corruption 1 | . 1 1 Average Corruption 1 | . 1 1 Corruption Purged . | . . . Corruption Blocked . | . . . Effects 4 | . 4 . Message Errors 1 | . 1 . Heat Flow Errors 1 | . 1 . Energy Discharges 1 | . 1 . Weapon Failures 1 | . 1 . Overload Shots . | . . . Overflow Damage . | . . . Projectiles . | . . . Explosions . | . . . Melee . | . . . Knockbacks 10 | . 5 5 Impact 2 | . . 2 Kinetic 7 | . 4 3 Secondary 1 | . 1 . Self-Inflicted Damage . | . . . Shots . | . . . Rammed 23 | . . 23 Targets Rammed 23 | . . 23 Kicked . | . . . Crushed . | . . . Highest Temperature 279 | . 279 244 Average Temperature 88 | . 76 142 Received Heat Transfer 563 | . 30 533 Siege Activations . | . . . Martial Activations . | . . . Shielding Activations . | . . . Robots Disrupted . | . . . Combat Hostiles . | . . . Robots Corrupted . | . . . Combat Hostiles . | . . . Parts Fried . | . . . Impact Corruptions . | . . . Robots Melted . | . . . Combat Hostiles . | . . . Parts Melted . | . . . Heat Transferred . | . . . Parts Sabotaged . | . . . Parts Stolen . | . . . Parts Stripped . | . . . Power Chain Reactions . | . . . Alert | -11 -10 -10 ------- Run | Yrd Mat Sub Maximum Alert Level . | . . . Low Security (%) 100 | . 100 . Level 1 . | . . . Level 2 . | . . . Level 3 . | . . . Level 4 . | . . . Level 5 . | . . . High Security . | . . . Max Security . | . . . Peak Influence 112 | . 112 . Initial . | . . . Average 45 | . 45 . Influence Increases 149 | . 149 . Destroy 0b10 Robot/C 100 | . 100 . Destroy 0b10 Robot/NC 20 | . 20 . Destroy Leader 24 | . 24 . Successful Hack 4 | . 4 . Destroy Structure 1 | . 1 . Influence Decreases 149 | . 127 22 Entered New Map 11 | . . 11 Time Decay 138 | . 127 11 Squads Dispatched 2 | . 2 . Investigation 1 | . 1 . Extermination . | . . . Reinforcement 1 | . 1 . Assault . | . . . Garrison . | . . . Intercept . | . . . Searches Triggered . | . . . Construction Impeded . | . . . Haulers Reinforced . | . . . Active Scanning Responses . | . . . Cargo Convoy Interrupts . | . . . Stealth | -11 -10 -10 --------- Run | Yrd Mat Sub Distress Signals . | . . . Communications Jammed . | . . . Distress Signals . | . . . Times Spotted 13 | . 9 4 Peak Tracking Total 3 | . 3 2 Tactical Retreats 1 | . 1 . ECM-based Alert Blocks 1 | . 1 . Traps | -11 -10 -10 ------- Run | Yrd Mat Sub Traps Triggered 3 | . 3 . Indirectly . | . . . Trap Hack Attempts . | . . . Triggered . | . . . Disarmed . | . . . Reprogrammed . | . . . Reused . | . . . Traps Extracted . | . . . Installed . | . . . Triggered . | . . . Machines | -11 -10 -10 ---------- Run | Yrd Mat Sub Machines Disabled . | . . . Max in Single Turn . | . . . Machines Repaired . | . . . Machines Dismantled . | . . . Machines Sabotaged . | . . . Overloaded Fab Kills . | . . . Hacking | -11 -10 -10 --------- Run | Yrd Mat Sub Machines Accessed 4 | . 3 1 Terminals 3 | . 3 . Fabricators . | . . . Repair Stations . | . . . Recycling Units . | . . . Scanalyzers . | . . . Garrison Access . | . . . Total Hacks 8 | . 5 3 Successful 7 | . 4 3 Failed 1 | . 1 . Catastrophic . | . . . Database Lockouts . | . . . Manual . | . . . Terminals 5 | . 5 . Fabricators . | . . . Repair Stations . | . . . Recycling Units . | . . . Scanalyzers . | . . . Garrison Access . | . . . Terminal Hacks 7 | . 4 3 Record 5 | . 2 3 Prototype ID Bank 1 | . 1 . Emergency Access Points 1 | . 1 . Fabricator Hacks . | . . . Repair Station Hacks . | . . . Recycling Unit Hacks . | . . . Scanalyzer . | . . . Garrison Access Hacks . | . . . Unauthorized Hacks . | . . . Terminals . | . . . Fabricators . | . . . Repair Stations . | . . . Recycling Units . | . . . Scanalyzers . | . . . Garrison Access . | . . . Data Cores Recovered . | . . . Used . | . . . Hacking Detections 1 | . 1 . Full Trace Events 1 | . 1 . Feedback Events 1 | . 1 . Corruption 1 | . 1 . Feedback Blocked . | . . . Robot Schematics Acquired . | . . . Robots Built . | . . . Authchips . | . . . Time . | . . . Total Robot Build Rating . | . . . Part Schematics Acquired . | . . . Parts Built . | . . . Authchips . | . . . Time . | . . . Total Part Build Rating . | . . . Part Studies Acquired . | . . . Parts Repaired . | . . . Time . | . . . Parts Recycled . | . . . Recycled Matter . | . . . Retrieved Matter . | . . . Retrieved Components . | . . . Parts Scanalyzed . | . . . Part Schematics Acquired . | . . . Parts Damaged . | . . . Bothacking | -11 -10 -10 ------------ Run | Yrd Mat Sub Used RIF Installer . | . . . Robots Hacked . | . . . Non-combat . | . . . Combat . | . . . Robot Hacks Applied . | . . . Relay Couplers Released . | . . . Fabnet Peak Effective % . | . . . Robots Rewired . | . . . Allies Hacked . | . . . Hacks Repelled . | . . . Allies | -11 -10 -10 -------- Run | Yrd Mat Sub Total Allies . | . . . Largest Group . | . . . Highest-Rated Group . | . . . Highest-Rated Ally . | . . . Total Orders . | . . . Ally Attacks . | . . . Total Damage . | . . . Kills . | . . . Allies Corrupted . | . . . Allies Melted . | . . . Intel | -11 -10 -10 ------- Run | Yrd Mat Sub Active Infowar (turns) 679 | . 338 341 ECM 679 | . 338 341 Robot Analysis Total . | . . . Derelict Logs Recovered . | . . . Drone Launches . | . . . Drone Recoveries . | . . . Exploration | -11 -10 -10 ------------- Run | Yrd Mat Sub Turns Passed 752 | . 371 381 Spaces Moved 465 | 1 227 237 Core . | . . . Treads 33 | . . 33 Legs 432 | 1 227 204 Wheels . | . . . Hover . | . . . Flight . | . . . Fastest Speed 120 | 120 120 120 Average Speed 122 | 120 120 125 Slowest Speed 190 | 120 190 160 Overloaded Moves . | . . . Propulsion Burnouts . | . . . Robots Hopped . | . . . Potential Cave-ins . | . . . Cave-ins Triggered . | . . . Exploration Rate (%) 17 | 2 29 21 Regions Visited 2 Branch Regions 1 Pre-discovered Areas . | . . . Known Exits Taken . | . . . Unknown Exits Taken 2 | 1 1 . Scrap Searched . | . . . Spaces Dug . | . . . Terrain Destroyed . | . . . Melee . | . . . Projectile . | . . . AOE . | . . . Terrain Rammed . | . . . Walls Destroyed . | . . . Machines Disabled . | . . . Actions | -11 -10 -10 --------- Run | Yrd Mat Sub Total 565 | . 285 280 Wait 13 | . 13 . Move 463 | . 226 237 Hop . | . . . Pick Up 4 | . 3 1 Fast Attach 5 | . 4 1 Attach 2 | . 2 . Detach 1 | . 1 . Swap 13 | . 11 2 Drop 6 | . 6 . Fire 35 | . 19 16 Melee . | . . . Ram 1 | . . 1 Kick . | . . . Crush 22 | . . 22 Escape Stasis . | . . . Rewire . | . . . Trap . | . . . Miscellaneous . | . . . Route ------- -11/Scrapyard -10/Materials -10/Subcaves History --------- Turn | Location | Event 1 | -11/Scrapyard | Discovered new exit (range 0) 1 | -11/Scrapyard | Entered Materials 245 | -10/Materials | Discovered new exit (range 9) 323 | -10/Materials | Build established: Mutant 372 | -10/Materials | Entered Subcaves 385 | -10/Subcaves | A swath of the cavern ceiling suddenly collapsed 442 | -10/Subcaves | Visited Clippyterm 446 | -10/Subcaves | Learned Research machine intel 603 | -10/Subcaves | Shifting Twisted Machinery released Spk. Treads 728 | -10/Subcaves | Core integrity fell below 50% 744 | -10/Subcaves | Core integrity fell below 20% 753 | -10/Subcaves | Destroyed by YY-Y31(R) with Subdweller Laser Last Messages --------------- 00668_ Acquired 6 matter. 00674_ Acquired 16 matter. 00678_ Subatomizers dissect the Sub. Monowheel. 00699_ Lgt. Cannon destroyed. 00707_ YY-Y31(R) knocked back. 00711_ Lgt. Cannon destroyed. 00713_ ECM Suite destroyed. 00714_ Slammed into XK-HNZ(R). 00716_ Subatomizers dissect the Sub. Optics. 00716_ Slammed into XK-HNZ(R). 00721_ XK-HNZ(R) knocked back. 00722_ Slammed into XK-HNZ(R). 00738_ XK-HNZ(R) knocked back. 00739_ Lgt. Treads destroyed. 00739_ Sub. Power Source destroyed. 00740_ Slammed into XK-HNZ(R). 00745_ Slammed into YY-Y31(R). 00751_ Spk. Treads destroyed. 00753_ Subatomizers dissect the Sub. Optics. 00753_ Slammed into YY-Y31(R). Map ----- +----------------------------------------------------+ | ?????????????????????????????????????????????????? | | ?????????????????????????????????????????????????? | | ?????????????????????????????????????????????????? | | ?????????????????????????????????????????????????? | | ?????????????????????????????????????????????????? | | ?????????????????????????????????????????????????? | | ?????????????????????????????????????????????????? | | ?????????????????????????????????????????????????? | | ?????????????????????????????????????????????????? | | ?????????????????????????????????????????????????? | | ?????????????????????????????????????????????????? | | ?????????????????????????????????????????????????? | | ????#####??###?????###???????????????????????????? | | ????# #### ##??## ##??????????????????????????? | | ???## #? #??# #??????????????????????????? | | ??## ##?# #### #???????????????????????????? | | #?# ## #### #???????????????????????????? | | ### ### ## ###?#######?????????????????? | | ### ###" ""##????????????????? | | # ## """"" ##???????????????? | | # ### #""" " #???????????????? | | ####### ! " "% #???????????????? | | ##????# !% % " #????????????????? | | ###?????### !;=# % """##????????????????? | | ###?????????# ## ##%%R""###?????????????????? | | ##????????? ## ###%@R ##???????????????????? | | ?????????# ## #?## %%##???????????????????? | | ????????# ### #??## #### """??????????? | | ???????# #?# ???## ??????? | | ??????? #?## #???### ??????? | | ??????## ???## ??????## ### ??????? | | ???????# ????# ??????? #??????????????? | | ???????# ????# #??????? ?????????????? | | ???????? #????? ????????? ???????????? | | ?????????? ?????? ????????? ??????????? | | ?????????????#?????? ??????????? ?????????? | | ????????????????????## ??????????? ????????? | | ?????????????????????? ???????????? ?????????? | | ?????????????????????? ??????????????###?????????? | | ?????????????????????? ??????????????????????????? | | ?????????????????????????????????????????????????? | | ?????????????????????????????????????????????????? | | ?????????????????????????????????????????????????? | | ?????????????????????????????????????????????????? | | ?????????????????????????????????????????????????? | | ?????????????????????????????????????????????????? | | ?????????????????????????????????????????????????? | | ?????????????????????????????????????????????????? | | ?????????????????????????????????????????????????? | | ?????????????????????????????????????????????????? | +----------------------------------------------------+ Best States ------------- Heat Dissipation 25 Energy Generation 15 Energy Capacity 250 Matter Stores 300 Matter Capacity 300 Sight Range 16 Terrain Scan Density 10 ECM Strength 1 Evasion (%) 55 Recoil Reduction 2 Item Schematics ----------------- None Robot Schematics ------------------ None Fabricated ------------ Nothing Repaired ---------- Nothing Studied --------- None Alien Tech Used ----------------- None Achievements -------------- None Challenges ------------ None Game ------ Seed DataDisruptorFlail Manual? 0 Play Time 00:10:12 Cumulative 31.6 hours Start 2026.02.05 @ 23:56:22 End 2026.02.06 @ 12:14:20 Sessions 2 Manual Loads 0 Difficulty Rogue Special Mode None Game No. 55 Rogue 55 Adventurer 0 Explorer 0 Win Type - Total 0 Types 0/0/0/0/0/0/0/0/0/0 Lore% 16 Gallery% 34 Achievement% 18 Wizard Run 0 Options --------- Layout 1 ASCII 0 Keyboard 0 Movement Mouse Keybinds 0 Fullscreen 1 Font 32/SmallcapsGlow Map View 77x35 Zoom Use 0% Tactical HUD 1 Map Filters NONE Filters NONE Steam 1 RUN: 25908269-29d8-419f-8018-867390e91dbc